bitfinex/quotes_ETHUSD_20251111
["timestamp","ask_amount","ask_price","bid_price","bid_amount"]
[1762898603404,0.002,3411.8,3411.7,16.3101768]
[1762898603607,0.002,3411.8,3411.7,19.54676287]
[1762898603920,0.002,3411.8,3411.7,22.36055391]
[1762898604789,0.002,3411.8,3411.7,19.42946384]
[1762898605042,0.002,3411.8,3411.7,22.36055391]
[1762898606995,0.002,3411.8,3411.7,26.15855391]
[1762898608624,0.002,3411.8,3411.7,22.36055391]
[1762898608823,0.002,3411.8,3411.7,22.78055397]
[1762898609451,0.002,3411.8,3411.7,23.367153]
[1762898609848,0.002,3411.8,3411.7,18.71846384]
[1762898610159,0.002,3411.8,3411.7,18.83576287]
[1762898610363,0.002,3411.8,3411.7,19.54476287]
[1762898610529,0.002,3411.8,3411.7,19.95026687]
[1762898611847,0.002,3411.8,3411.7,19.24126687]
[1762898612047,0.002,3411.8,3411.7,19.95126687]
[1762898612247,0.002,3411.8,3411.7,22.40001203]
[1762898612457,0.002,3411.8,3411.7,22.39901203]
[1762898612885,0.002,3411.8,3411.7,17.62518116]
[1762898613176,0.002,3411.8,3411.7,22.39901203]
[1762898613327,0.002,3411.8,3411.7,19.95026687]
[1762898614425,0.002,3411.8,3411.7,17.0191768]
[1762898614840,0.002,3411.8,3411.7,19.95026687]
[1762898615835,0.002,3411.8,3411.7,17.0191768]
[1762898616065,0.002,3411.8,3411.7,19.95026687]
[1762898616874,0.002,3411.8,3411.7,22.23851159]
[1762898617178,0.002,3411.8,3411.7,19.30742152]
[1762898617377,0.002,3411.8,3411.7,19.30642152]
[1762898617583,0.002,3411.8,3411.7,18.81552607]
[1762898618688,1.90602208,3411.8,3411.6,0.001]
[1762898618858,4.64402487,3411.7,3411.6,0.001]
[1762898619041,5.37353222,3411.7,3411.6,0.001]
[1762898620559,5.37353222,3411.7,3411.6,3.799]
[1762898621262,1.94962007,3411.7,3411.6,3.799]
[1762898622274,1.48932007,3411.7,3411.6,3.799]
[1762898622472,1.94962007,3411.7,3411.6,3.799]
[1762898623304,1.9502599,3411.7,3411.6,3.799]
[1762898623929,1.9502599,3411.7,3411.3,0.001]
[1762898624230,3.88224783,3411.4,3411.3,0.001]
[1762898624555,4.42130773,3411.4,3411.3,0.001]
[1762898624733,1.9502599,3411.4,3411.3,0.001]
[1762898625518,1.4899599,3411.4,3411.3,0.001]
[1762898625698,0.5390599,3411.4,3411.3,4.04393776]
[1762898625880,0.5,3411.7,3411.6,2.93114898]
[1762898626080,1.0386261,3411.7,3411.6,2.93114898]
[1762898626276,1.0386261,3411.7,3411.6,17.43114898]
[1762898626892,1.9498261,3411.7,3411.6,15.206]
[1762898627296,1.9498261,3411.7,3411.6,18.13717598]
[1762898627495,1.4895261,3411.7,3411.6,15.206]
[1762898628026,1.0386261,3411.7,3411.6,0.706]
[1762898628415,1.0386261,3411.7,3411.6,3.63717598]
[1762898628613,1.0386261,3411.7,3411.6,0.706]
[1762898628835,1.4895261,3411.7,3411.6,3.63717598]
[1762898629013,0.5386261,3411.7,3411.6,3.63717598]
[1762898629230,0.002,3411.8,3411.6,0.706]
[1762898629427,1.22028437,3411.7,3411.6,0.706]
[1762898629657,0.53876874,3411.7,3411.6,3.63717598]
[1762898629825,0.26938437,3411.7,3411.6,3.63717598]
[1762898630029,0.27139189,3411.8,3411.7,3.33659407]
[1762898630265,0.002,3411.8,3411.7,3.36590497]
[1762898630559,0.002,3411.8,3411.7,4.49964577]
[1762898630757,0.002,3411.8,3411.7,6.21901834]
[1762898631247,0.002,3411.8,3411.7,20.71901834]
[1762898631948,0.002,3411.8,3411.7,21.42401834]
[1762898633468,0.002,3411.8,3411.7,21.5414273]
[1762898634627,0.002,3411.8,3411.7,21.5404273]
[1762898634956,0.002,3411.8,3411.7,21.96103666]
[1762898635518,0.002,3412.2,3412.1,3.33625046]
[1762898635716,0.002,3412.2,3412.1,13.3376109]
[1762898636034,0.9722,3413.5,3413.2,1.5392448]
[1762898636227,0.9722,3413.5,3413.4,4.46887508]
[1762898636629,0.4966,3413.5,3413.4,4.46887508]
[1762898636824,0.9688,3413.5,3413.4,1.5392448]
[1762898637030,1.4688,3413.5,3413.4,1.5392448]
[1762898637229,0.5,3413.4,3413.2,0.8802649]
[1762898637460,0.9966,3413.3,3413.2,3.81006684]
[1762898637626,0.9966,3413.3,3413.2,2.92980194]
[1762898637831,0.4966,3413.3,3413.2,17.42980194]
[1762898638030,0.1827,3413.7,3413.2,16.80798628]
[1762898638241,0.5,3413.5,3413.3,1.111504]
[1762898638450,1.4538,3413.4,3413.3,4.04120439]
[1762898638655,0.9538,3413.4,3413.3,4.04120439]
[1762898638853,1.4538,3413.4,3413.3,4.04120439]
[1762898639026,0.9538,3413.4,3413.3,0.706]
[1762898639228,1.4538,3413.4,3413.3,3.63571611]
[1762898639428,1.4538,3413.4,3413.3,0.706]
[1762898639629,0.9538,3413.4,3413.3,0.706]
[1762898639829,1.4538,3413.4,3413.3,0.706]
[1762898640029,1.4538,3413.4,3413.3,3.63571611]
[1762898640273,0.9538,3413.4,3413.2,14.5]
[1762898640450,0.9828488,3413.3,3412.4,2.93048552]
[1762898640657,2.93007038,3412.9,3411.7,2.93109007]
[1762898640864,2.93007038,3412.9,3412.0,2.930782]
[1762898640865,0.467,3412.3,3412.0,2.930782]
[1762898641064,0.967,3412.3,3411.8,14.5]
[1762898641265,0.6497,3411.9,3411.8,17.43100416]
[1762898641429,0.6497,3411.9,3411.8,18.13700416]
[1762898641630,1.6365,3411.9,3411.8,18.13700416]
[1762898641844,1.1365,3411.9,3411.8,18.13700416]
[1762898642057,1.1365,3411.9,3411.8,19.27074496]
[1762898642832,1.1365,3411.9,3411.8,19.67624896]
[1762898643043,1.1365,3411.9,3411.8,16.7452448]
[1762898643251,1.6365,3411.9,3411.8,16.7452448]
[1762898643445,1.1365,3411.9,3411.8,16.7452448]
[1762898643855,1.1365,3411.9,3411.8,19.67624896]
[1762898644242,1.1365,3411.9,3411.8,16.7452448]
[1762898644444,1.1365,3411.9,3411.8,19.67624896]
[1762898644658,0.5,3412.0,3411.9,4.06465905]
[1762898644866,0.4868,3412.5,3411.9,1.1337408]
[1762898645064,0.467,3412.0,3411.9,1.1337408]
[1762898645368,0.1827,3412.8,3412.0,0.405504]
[1762898645538,0.1827,3412.8,3412.2,0.405504]
[1762898645738,0.9868,3412.7,3412.5,2.93034482]
[1762898645933,0.9868,3412.7,3412.5,3.63534482]
[1762898646181,0.1827,3412.8,3411.9,2.80836528]
[1762898646182,0.9538,3412.6,3411.9,2.80836528]
[1762898646346,3.41713557,3412.6,3412.0,2.2442448]
[1762898646535,0.5,3412.1,3412.0,1.110504]
[1762898646735,1.4538,3412.1,3412.0,1.110504]
[1762898646962,1.4538,3412.1,3412.0,5.17507715]
[1762898647158,0.9538,3412.1,3412.0,2.2442448]
[1762898647348,1.4538,3412.1,3412.0,2.2442448]
[1762898647544,1.4538,3412.1,3412.0,5.17507715]
[1762898647880,0.5,3412.1,3412.0,5.17507715]
[1762898648065,0.5,3412.4,3412.2,2.93058625]
[1762898648366,0.5,3412.4,3412.3,2.93057242]
[1762898648571,0.5,3412.3,3412.2,2.93063989]
[1762898648770,0.4868,3412.5,3412.0,4.09934613]
[1762898648977,0.467,3412.1,3412.0,1.8387408]
[1762898649141,0.967,3412.1,3412.0,2.2442448]
[1762898649340,0.967,3412.1,3412.0,5.17507715]
[1762898649776,0.467,3412.1,3412.0,5.17507715]
[1762898650579,0.9538,3412.1,3412.0,5.17507715]
[1762898650793,1.4538,3412.1,3412.0,2.2432448]
[1762898651078,1.4538,3412.1,3411.9,0.704]
[1762898651079,0.5,3412.0,3411.9,0.704]
[1762898651241,0.9538,3412.0,3411.8,14.5]
[1762898651447,1.1497,3411.9,3411.8,18.56474496]
[1762898651674,1.6365,3411.9,3411.8,19.26874496]
[1762898651975,1.6365,3411.9,3411.8,0.704]
[1762898652350,1.6365,3411.9,3411.6,0.001]
[1762898652553,0.967,3411.7,3411.6,0.001]
[1762898652763,1.4538,3411.7,3411.6,0.705]
[1762898653165,0.967,3411.7,3411.6,0.705]
[1762898654382,0.967,3411.7,3411.6,4.04167998]
[1762898654583,0.467,3411.7,3411.6,6.30243984]
[1762898654782,0.467,3411.7,3411.6,5.59843984]
[1762898654962,0.467,3411.7,3411.6,6.30243984]
[1762898655350,1.68362208,3412.6,3411.7,0.405504]
[1762898655550,0.26878213,3412.5,3412.3,0.405504]
[1762898655870,0.4868,3413.2,3412.6,3.33582106]
[1762898656083,0.53970114,3413.1,3412.6,4.06912423]
[1762898656383,0.53770114,3413.0,3412.6,4.06912423]
[1762898656586,0.002,3413.1,3412.6,4.06912423]
[1762898656780,0.27090101,3413.1,3412.6,4.06912423]
[1762898656981,0.002,3413.1,3412.6,5.17356186]
[1762898657384,0.002,3413.1,3412.6,5.29093189]
[1762898657697,0.002,3413.1,3412.6,4.58693189]
[1762898657900,0.1827,3412.9,3412.6,5.17356186]
[1762898658046,0.9558,3412.7,3412.6,1.109504]
[1762898658251,1.4558,3412.7,3412.6,1.109504]
[1762898659484,1.4558,3412.7,3412.0,0.88046124]
[1762898659658,0.002,3412.7,3412.6,2.93031706]
[1762898659866,0.002,3412.7,3412.6,4.03982106]
[1762898661118,0.002,3412.7,3412.6,5.17356186]
[1762898662298,0.469,3412.7,3412.6,1.5392448]
[1762898662606,0.002,3412.7,3412.6,5.17356186]
[1762898664235,0.002,3412.7,3412.6,5.98395903]
[1762898665317,0.002,3412.7,3412.6,3.05364197]
[1762898665521,0.969,3412.7,3412.6,5.17356186]
[1762898665882,0.469,3412.7,3412.6,5.17356186]
[1762898666088,0.002,3412.7,3412.6,5.17356186]
[1762898666819,0.002,3412.7,3412.6,2.2432448]
[1762898667120,1.4167,3412.7,3412.6,5.17356186]
[1762898667283,1.4167,3412.7,3412.6,0.405504]
[1762898667623,0.5,3412.6,3412.5,0.001]
[1762898667829,1.4147,3412.6,3412.5,0.705]
[1762898669750,1.95285624,3412.6,3412.5,0.705]
[1762898670747,4.8831733,3412.6,3412.5,0.001]
[1762898670912,5.37599538,3412.6,3412.5,0.001]
[1762898673441,5.40504418,3412.6,3412.5,0.001]
[1762898673849,5.40504418,3412.6,3412.1,0.001]
[1762898673850,3.92348265,3412.2,3412.1,0.001]
[1762898674046,0.99745624,3412.2,3412.1,0.001]
[1762898674345,5.37633889,3412.2,3412.1,0.001]
[1762898674647,5.40538769,3412.2,3412.1,0.001]
[1762898676059,5.37633889,3412.2,3412.1,0.001]
[1762898678467,2.44567832,3412.2,3412.1,0.001]
[1762898678628,1.49745624,3412.2,3412.1,0.001]
[1762898678830,1.95285624,3412.2,3412.1,0.001]
[1762898679054,4.88351681,3412.2,3412.1,0.001]
[1762898679231,5.37633889,3412.2,3412.1,0.001]
[1762898679433,1.95285624,3412.2,3412.1,0.001]
[1762898680166,5.37633889,3412.2,3412.1,0.001]
[1762898680561,4.88351681,3412.2,3412.1,0.001]
[1762898681075,5.37633889,3412.2,3412.1,0.001]
[1762898684658,4.88351681,3412.2,3412.1,0.001]
[1762898684855,5.37633889,3412.2,3412.1,0.001]
[1762898685668,4.88351681,3412.2,3412.1,0.001]
[1762898685966,5.37633889,3412.2,3412.1,0.001]
[1762898686638,2.44567832,3412.2,3412.1,0.001]
[1762898687045,5.37633889,3412.2,3412.1,0.001]
[1762898691575,1.95285624,3412.2,3412.1,0.001]
[1762898691783,5.37633889,3412.2,3412.1,0.001]
[1762898692100,1.03815624,3412.2,3412.1,0.001]
[1762898692245,1.03815624,3412.2,3412.1,5.44050277]
[1762898692246,0.53815624,3412.2,3412.1,5.44050277]
[1762898692446,0.5,3412.2,3412.1,0.406504]
[1762898692980,1.95288038,3412.2,3412.1,0.001]
[1762898693275,1.49748038,3412.2,3412.1,0.001]
[1762898693666,1.03818038,3412.2,3412.1,0.001]
[1762898693977,1.49748038,3412.2,3412.1,0.001]
[1762898694366,4.88354095,3412.2,3412.1,0.001]
[1762898694550,5.37636303,3412.2,3412.1,0.001]
[1762898697344,2.44570246,3412.2,3412.1,0.001]
[1762898697678,1.95288038,3412.2,3412.1,0.001]
[1762898698604,1.03818038,3412.2,3412.1,0.001]
[1762898699096,1.51618038,3412.2,3412.1,0.001]
[1762898700588,3.43100416,3411.8,3411.7,0.001]
[1762898700900,2.15281443,3411.8,3411.7,0.001]
[1762898701101,0.53818038,3411.8,3411.7,4.06583087]
[1762898701305,0.002,3412.5,3411.8,0.405504]
[1762898701464,0.002,3412.5,3412.2,5.03399877]
[1762898701465,0.539995,3412.4,3412.2,5.03399877]
[1762898701800,1.039995,3412.3,3412.2,14.5]
[1762898702004,1.517995,3412.3,3412.2,14.5]
[1762898702317,0.5,3411.8,3411.7,0.406504]
[1762898702504,1.039995,3411.8,3411.7,0.001]
[1762898702669,1.039995,3411.8,3411.7,15.610504]
[1762898702869,1.039995,3411.8,3411.7,18.54159407]
[1762898703073,1.039995,3411.8,3411.7,14.501]
[1762898703271,1.517995,3411.8,3411.7,14.501]
[1762898703576,1.517995,3411.8,3411.7,0.001]
[1762898703962,1.039995,3411.8,3411.7,2.93209007]
[1762898704405,1.039995,3411.8,3411.7,0.001]
[1762898704589,1.039995,3411.8,3411.7,2.93209007]
[1762898704791,0.539995,3411.8,3411.7,7.96608884]
[1762898705278,0.539995,3411.8,3411.7,0.001]
[1762898705797,1.039995,3411.8,3411.7,0.001]
[1762898706137,1.517995,3411.8,3411.7,0.001]
[1762898706645,2.000795,3411.8,3411.7,0.001]
[1762898706825,5.42462124,3411.8,3411.7,0.001]
[1762898707126,6.07484831,3411.8,3411.7,0.001]
[1762898707290,6.04579951,3411.8,3411.7,0.001]
[1762898708090,5.42462124,3411.8,3411.7,0.001]
[1762898708727,2.49361708,3411.8,3411.7,0.001]
[1762898708916,1.039995,3411.8,3411.7,0.001]
[1762898710128,0.539995,3411.8,3411.7,0.001]
[1762898710608,1.039995,3411.8,3411.7,0.001]
[1762898711036,0.539995,3411.8,3411.7,0.001]
[1762898711352,2.000795,3411.8,3411.7,0.001]
[1762898712051,1.517995,3411.8,3411.7,0.001]
[1762898712351,1.039995,3411.8,3411.7,0.001]
[1762898715317,0.7699975,3411.8,3411.7,0.001]
[1762898715517,1.03948392,3411.8,3411.7,0.001]
[1762898716336,0.53948392,3411.8,3411.7,4.72560689]
[1762898716535,0.2699975,3411.8,3411.7,6.56234769]
[1762898718054,0.2699975,3411.8,3411.7,10.36234769]
[1762898718272,0.002,3412.5,3411.9,2.93088991]
[1762898718421,0.002,3412.5,3411.9,0.405504]
[1762898718422,0.5,3412.1,3411.9,0.405504]
[1762898718615,0.26945837,3412.0,3411.9,4.07964801]
[1762898719125,0.26945837,3412.0,3411.9,18.57964801]
[1762898719329,1.73025837,3412.0,3411.9,14.5]
[1762898719522,0.26945837,3412.0,3411.9,17.83642225]
[1762898719871,0.26945837,3412.0,3411.9,18.53942225]
[1762898720019,0.26945837,3412.0,3411.9,21.18004056]
[1762898720581,0.002,3412.5,3411.9,21.18004056]
[1762898720582,0.002,3412.1,3412.0,3.33633635]
[1762898721617,0.002,3412.1,3412.0,14.5]
[1762898721618,1.24893892,3412.1,3412.0,14.5]
[1762898721851,0.5,3411.9,3411.8,4.205504]
[1762898722166,1.91922067,3411.9,3411.8,7.13650816]
[1762898722360,2.18812966,3411.9,3411.8,3.8]
[1762898723259,1.03782966,3411.9,3411.8,3.8]
[1762898723571,0.5,3411.8,3411.7,3.801]
[1762898723722,1.99862966,3411.8,3411.7,3.801]
[1762898724363,0.002,3412.9,3412.6,4.46956186]
[1762898724543,0.002,3412.9,3412.7,4.46947599]
[1762898724757,0.002,3412.9,3412.7,20.99052429]
[1762898725148,0.002,3412.9,3412.7,22.16554678]
[1762898725350,0.002,3413.2,3413.0,2.92997363]
[1762898725546,0.002,3413.2,3413.0,6.34924092]
[1762898725785,0.002,3413.2,3413.0,7.93011807]
[1762898725948,0.002,3413.2,3413.0,21.25509558]
[1762898727337,0.002,3413.2,3413.0,21.37244701]
[1762898729477,0.002,3413.2,3413.0,20.66744701]
[1762898729679,0.002,3413.2,3413.0,21.37244701]
[1762898729976,0.002,3413.2,3413.0,19.01085078]
[1762898730174,0.4523,3413.1,3413.0,14.5]
[1762898730376,0.9069,3413.1,3413.0,14.5]
[1762898730675,0.9069,3413.1,3413.0,15.6337408]
[1762898730973,0.002,3413.1,3413.0,4.06371443]
[1762898731476,0.002,3413.1,3413.0,15.6337408]
[1762898732742,0.4523,3413.1,3413.0,15.6337408]
[1762898732941,0.9069,3413.1,3413.0,14.5]
[1762898734363,0.002,3413.1,3413.0,18.95037363]
[1762898734964,0.4523,3413.1,3413.0,14.5]
[1762898735685,0.4523,3413.1,3413.0,18.3]
[1762898736583,0.4523,3413.1,3413.0,21.22997363]
[1762898736744,0.002,3413.1,3413.0,22.36371443]
[1762898736942,0.002,3413.1,3413.0,24.9634999]
[1762898737582,0.002,3413.1,3413.0,22.36371443]
[1762898738998,0.002,3413.1,3413.0,22.76921843]
[1762898739173,0.002,3413.1,3413.0,18.96921843]
[1762898739351,0.002,3413.1,3413.0,19.0865826]
[1762898739884,0.002,3413.1,3413.0,4.5865826]
[1762898740046,0.002,3413.1,3413.0,5.40865489]
[1762898740254,0.002,3413.1,3413.0,19.90865489]
[1762898743663,1e-08,3413.2,3413.1,4.46913258]
[1762898743862,1e-08,3413.2,3413.1,12.14101224]
[1762898744187,1e-08,3413.2,3413.1,14.1054685]
[1762898744391,1e-08,3413.2,3413.1,28.6054685]
[1762898747697,1e-08,3413.2,3413.1,28.72281373]
[1762898748178,1e-08,3413.5,3413.4,4.46887508]
[1762898748491,1e-08,3413.5,3413.4,8.06342741]
[1762898749481,1e-08,3413.5,3413.4,22.68075888]
[1762898749659,1e-08,3413.5,3413.4,21.97775888]
[1762898749859,1e-08,3413.5,3413.4,22.68075888]
[1762898751496,1e-08,3413.5,3413.4,21.97775888]
[1762898751794,1e-08,3413.5,3413.4,22.68075888]
[1762898755334,0.45030001,3413.5,3413.4,21.97775888]
[1762898755506,0.90490001,3413.5,3413.4,19.78920655]
[1762898755834,0.90490001,3413.5,3413.4,19.08620655]
[1762898756005,0.90490001,3413.5,3413.4,19.78920655]
[1762898756335,0.90490001,3413.5,3413.4,19.79020655]
[1762898756535,0.45030001,3413.5,3413.4,19.79020655]
[1762898757719,0.90610001,3413.5,3413.4,19.79020655]
[1762898758432,0.90610001,3413.5,3413.4,5.29020655]
[1762898759014,0.90610001,3413.5,3413.4,19.79020655]
[1762898759534,1e-08,3413.5,3413.4,19.67287508]
[1762898761251,0.45220001,3413.5,3413.4,19.67287508]
[1762898761710,0.92890001,3413.5,3413.4,19.67287508]
[1762898761910,0.92890001,3413.5,3413.4,18.96987508]
[1762898762239,0.92890001,3413.5,3413.4,19.67187508]
[1762898762734,1e-08,3413.5,3413.4,19.67187508]
[1762898763097,1e-08,3413.5,3413.4,21.93203443]
[1762898763317,1e-08,3413.5,3413.4,22.39822184]
[1762898763512,1e-08,3413.5,3413.4,21.93203443]
[1762898764797,1e-08,3413.5,3413.4,22.39822184]
[1762898765005,1e-08,3413.5,3413.4,24.14279964]
[1762898765237,1e-08,3413.5,3413.4,22.39822184]
[1762898766005,1e-08,3413.5,3413.4,23.97687712]
[1762898766220,1e-08,3413.9,3413.8,3.33479101]
[1762898766418,1e-08,3413.9,3413.8,12.13941147]
[1762898766617,1e-08,3413.9,3413.8,12.60559888]
[1762898767008,1e-08,3413.9,3413.8,27.10559888]
[1762898767200,1e-08,3413.9,3413.8,29.99715121]
[1762898767644,1e-08,3413.9,3413.8,31.57602822]
[1762898768151,1e-08,3413.9,3413.8,32.16296939]
[1762898768304,1e-08,3413.9,3413.8,31.69678198]
[1762898768511,1e-08,3413.9,3413.8,30.11790497]
[1762898768707,1e-08,3413.9,3413.8,21.45458014]
[1762898769053,1.62510001,3413.9,3413.8,14.5]
[1762898769223,1.62510001,3413.9,3413.8,15.6337408]
[1762898769556,1.62510001,3413.9,3413.8,16.0392448]
[1762898769847,1.62510001,3413.9,3413.8,14.905504]
[1762898770860,1.62510001,3413.9,3413.8,14.5]
[1762898771064,1.12510001,3413.9,3413.8,15.202]
[1762898771269,1.62510001,3413.9,3413.8,15.607504]
[1762898773038,1.12510001,3413.9,3413.4,0.001]
[1762898773246,0.4522,3413.5,3413.4,4.76637108]
[1762898773434,0.9522,3413.5,3413.4,5.17187508]
[1762898773622,1.4289,3413.5,3413.4,5.17187508]
[1762898774230,3.85844445,3413.5,3413.4,0.001]
[1762898774423,4.85126653,3413.5,3413.4,0.001]
[1762898774627,1.4289,3413.5,3413.4,0.001]
[1762898774849,4.35844445,3413.5,3413.4,0.001]
[1762898775062,4.85126653,3413.5,3413.4,0.001]
[1762898775254,1.4289,3413.5,3413.4,0.001]
[1762898776027,0.9289,3413.5,3413.4,0.001]
[1762898776226,0.4522,3413.5,3413.4,4.03813428]
[1762898776425,0.9289,3413.5,3413.4,4.03813428]
[1762898776647,0.5,3413.8,3413.5,0.405504]
[1762898776964,0.19620001,3413.9,3413.7,2.92937282]
[1762898776965,0.67290001,3413.9,3413.7,2.92937282]
[1762898777163,0.9767,3413.8,3413.7,2.92937282]
[1762898777327,1.4289,3413.8,3413.7,2.92937282]
[1762898778282,0.9289,3413.8,3413.4,0.001]
[1762898778473,0.5,3413.6,3413.5,1.107504]
[1762898778827,1.4289,3413.6,3413.5,1.107504]
[1762898779364,0.9289,3413.6,3413.5,1.107504]
[1762898780466,1.4289,3413.6,3413.5,1.107504]
[1762898780631,0.9289,3413.6,3413.5,1.107504]
[1762898780833,1.4289,3413.6,3413.5,4.03704845]
[1762898781069,0.9289,3413.6,3413.5,0.405504]
[1762898781261,0.5,3413.5,3413.4,0.703]
[1762898781479,1.4289,3413.5,3413.4,0.001]
[1762898781693,0.9289,3413.5,3413.4,0.001]
[1762898781999,1.4289,3413.5,3413.4,0.001]
[1762898782667,0.9289,3413.5,3413.4,0.001]
[1762898782867,1.4289,3413.5,3413.4,0.001]
[1762898783693,2.92980194,3413.2,3413.1,0.001]
[1762898783853,2.92988778,3413.1,3413.0,0.001]
[1762898784058,0.5,3412.8,3412.2,0.702]
[1762898784259,1.1484,3412.8,3412.4,0.405504]
[1762898784491,2.11792208,3412.8,3412.4,0.405504]
[1762898784795,1.6251,3412.8,3412.3,0.405504]
[1762898785114,5.04806741,3412.8,3412.3,0.405504]
[1762898785593,5.04806741,3412.8,3412.0,0.001]
[1762898785760,5.31592369,3412.8,3412.0,0.001]
[1762898785954,5.31592369,3412.8,3412.0,1.1347408]
[1762898786155,5.31592369,3412.8,3412.0,0.001]
[1762898786388,5.58377338,3412.8,3412.0,0.406504]
[1762898786596,5.58377338,3412.8,3412.0,0.001]
[1762898787311,5.31592369,3412.8,3412.0,0.001]
[1762898787471,5.04806741,3412.8,3412.0,0.001]
[1762898787676,1.6251,3412.8,3412.0,0.406504]
[1762898787871,1.6251,3412.8,3412.4,2.93047969]
[1762898788088,1.6251,3412.8,3412.5,2.93039319]
[1762898788287,1.6251,3412.8,3412.6,2.93031164]
[1762898788585,1.6251,3412.8,3412.4,0.405504]
[1762898788804,1.6251,3412.8,3412.5,2.93036777]
[1762898790775,0.002,3414.2,3413.0,0.405504]
[1762898791016,0.5,3413.4,3413.2,2.92977412]
[1762898791216,0.19620001,3413.9,3413.4,0.405504]
[1762898791387,1.18280001,3413.9,3413.5,0.405504]
[1762898791581,1e-08,3413.9,3413.6,3.33491127]
[1762898791782,0.50000001,3413.9,3413.8,3.33479101]
[1762898792082,1e-08,3413.9,3413.8,3.33479101]
[1762898792582,1e-08,3413.9,3413.8,4.46853181]
[1762898792805,1e-08,3413.9,3413.8,5.96488801]
[1762898799628,1e-08,3413.9,3413.8,6.66688801]
[1762898799821,0.46930001,3413.9,3413.8,6.66688801]
[1762898800223,1e-08,3413.9,3413.8,6.66688801]
[1762898800529,0.46930001,3413.9,3413.8,6.66688801]
[1762898801921,0.66420001,3413.9,3413.8,6.66688801]
[1762898802129,1.15080001,3413.9,3413.8,5.17053181]
[1762898802611,0.66420001,3413.9,3413.8,5.17053181]
[1762898803113,1e-08,3413.9,3413.8,5.17053181]
[1762898804455,1e-08,3413.9,3413.8,5.19982468]
[1762898804733,1e-08,3413.9,3413.8,5.17053181]
[1762898804933,1e-08,3413.9,3413.8,6.66688493]
[1762898805932,1e-08,3413.9,3413.8,7.11563067]
[1762898806433,1e-08,3413.9,3413.8,6.66688493]
[1762898806639,1e-08,3413.9,3413.8,6.66588493]
[1762898807715,1e-08,3414.3,3414.2,3.33444782]
[1762898807941,1e-08,3414.3,3414.2,12.03281157]
[1762898808233,1e-08,3414.3,3414.2,5.16918862]
[1762898809751,1e-08,3414.3,3414.2,19.66918862]
[1762898809951,1e-08,3414.3,3414.2,22.56074095]
[1762898810311,0.46930001,3414.3,3414.2,22.56074095]
[1762898810514,0.46930001,3414.3,3414.2,19.66918862]
[1762898810515,0.95590001,3414.3,3414.2,19.66918862]
[1762898810703,0.46930001,3414.3,3414.2,19.66918862]
[1762898811111,0.95590001,3414.3,3414.2,19.66918862]
[1762898811842,0.95590001,3414.3,3414.2,16.7402448]
[1762898812155,0.95590001,3414.3,3414.2,14.5]
[1762898812363,0.95590001,3414.3,3414.2,17.42894382]
[1762898812913,0.95590001,3414.3,3414.2,17.83444782]
[1762898813107,1.45590001,3414.3,3414.2,17.83444782]
[1762898813516,1.45590001,3414.3,3414.2,27.90815991]
[1762898813517,1e-08,3414.3,3414.2,27.90815991]
[1762898813718,1e-08,3414.3,3414.2,21.04453696]
[1762898813922,0.95590001,3414.3,3414.2,21.74553696]
[1762898814744,0.95590001,3414.3,3414.2,18.96818862]
[1762898815042,1.45590001,3414.3,3414.2,19.66918862]
[1762898815254,0.95590001,3414.3,3414.2,19.66918862]
[1762898815943,1.45590001,3414.3,3414.2,19.66918862]
[1762898816244,1.45590001,3414.3,3414.2,16.7402448]
[1762898816545,0.95590001,3414.3,3414.2,19.66918862]
[1762898816748,1.45590001,3414.3,3414.2,19.66918862]
[1762898816935,0.95590001,3414.3,3414.2,19.66918862]
[1762898818447,0.95590001,3414.3,3414.2,23.46918862]
[1762898819342,0.95590001,3414.3,3414.2,8.96918862]
[1762898819651,0.46930001,3414.3,3414.2,8.96918862]
[1762898819838,0.46930001,3414.3,3414.2,24.34924693]
[1762898820350,0.48730001,3414.3,3414.2,24.34924693]
[1762898820751,1.44980001,3414.3,3414.2,24.34924693]
[1762898820960,0.94980001,3414.3,3414.2,24.34924693]
[1762898821341,1e-08,3414.3,3414.2,23.0961739]
[1762898824820,1e-08,3414.3,3414.2,28.12152237]
[1762898825765,0.94980001,3414.3,3414.2,22.6906699]
[1762898825921,0.94980001,3414.3,3414.2,20.54924693]
[1762898826655,0.94980001,3414.3,3414.2,0.88005831]
[1762898826856,0.94980001,3414.3,3414.1,0.001]
[1762898826857,1.44980001,3414.3,3414.1,0.001]
[1762898827159,0.9498,3414.2,3414.1,14.501]
[1762898827522,1.4498,3414.2,3414.1,14.501]
[1762898828149,1.4498,3414.2,3414.1,17.43002961]
[1762898828361,0.9498,3414.2,3414.1,17.43002961]
[1762898828521,1.4498,3414.2,3414.1,17.43002961]
[1762898828852,0.9498,3414.2,3414.1,14.501]
[1762898829038,1.4498,3414.2,3414.1,0.001]
[1762898829437,1.4498,3414.2,3414.1,14.501]
[1762898830433,1.4498,3414.2,3414.1,17.43002961]
[1762898830634,0.9498,3414.2,3414.1,18.301]
[1762898830839,1.7186526,3414.2,3414.1,3.801]
[1762898831034,1.4498,3414.2,3414.1,3.801]
[1762898833667,1e-08,3414.3,3414.2,4.46818862]
[1762898834065,0.94980001,3414.3,3414.2,19.66918862]
[1762898834633,1.44980001,3414.3,3414.2,14.5]
[1762898835060,1.44980001,3414.3,3414.1,0.001]
[1762898835061,0.5,3414.2,3414.1,0.001]
[1762898835339,1.4498,3414.2,3414.1,0.001]
[1762898836369,5.409172,3414.2,3414.1,0.001]
[1762898840647,5.4382208,3414.2,3414.1,0.001]
[1762898842465,5.409172,3414.2,3414.1,0.001]
[1762898843869,5.40815206,3414.2,3414.1,0.001]
[1762898844671,5.43720086,3414.2,3414.1,0.001]
[1762898845773,5.40815206,3414.2,3414.1,0.001]